bitfinex/quotes_SOLUSD_20220118
["timestamp","ask_amount","ask_price","bid_price","bid_amount"]
[1642515218730,2.946,135.76,135.68,10.57]
[1642515218933,2.946,135.76,135.69,0.25]
[1642515219627,2.946,135.76,135.69,45.88929894]
[1642515219930,2.946,135.76,135.69,69.22980685]
[1642515220128,10.02108818,135.77,135.69,69.22980685]
[1642515220350,10.02108818,135.77,135.69,69.48980685]
[1642515222152,10.02108818,135.77,135.7,2.947]
[1642515222352,10.02108818,135.77,135.71,21.6199]
[1642515222552,10.02108818,135.77,135.72,36.26065183]
[1642515222755,10.02108818,135.77,135.73,0.25]
[1642515223754,10.02108818,135.77,135.72,36.26065183]
[1642515223955,8.946,135.76,135.72,36.26065183]
[1642515224154,6.0,135.76,135.73,0.25]
[1642515224355,10.02108818,135.77,135.73,0.25]
[1642515226558,10.02108818,135.77,135.73,11.2989]
[1642515227258,10.02108818,135.77,135.73,85.1589]
[1642515227856,10.02108818,135.77,135.74,2.946]
[1642515228061,10.02108818,135.77,135.75,50.9863823]
[1642515228259,10.02108818,135.77,135.75,51.2363823]
[1642515230666,10.02108818,135.77,135.75,41.2003372]
[1642515230863,10.02108818,135.77,135.76,3.03210003]
[1642515231062,10.02108818,135.77,135.75,44.23253717]
[1642515232062,10.02108818,135.77,135.75,3.03219997]
[1642515232261,10.02108818,135.77,135.71,26.1751]
[1642515232462,10.02108818,135.77,135.73,0.25]
[1642515233565,10.02108818,135.77,135.72,0.25]
[1642515233763,10.02108818,135.77,135.71,23.2291]
[1642515233963,12.96708818,135.77,135.71,23.2291]
[1642515234866,6.25,135.76,135.68,2.946]
[1642515235067,2.947,135.75,135.65,25.7705]
[1642515235268,0.25,135.74,135.63,27.6598]
[1642515235469,2.948,135.73,135.63,24.7128]
[1642515235668,29.79930772,135.72,135.64,48.42199076]
[1642515235870,2.948,135.71,135.64,48.42199076]
[1642515236071,6.0,135.7,135.64,48.42199076]
[1642515236272,6.0,135.7,135.63,35.7693]
[1642515236470,6.0,135.7,135.63,24.7128]
[1642515237272,36.8849976,135.69,135.63,24.7128]
[1642515237471,37.1349976,135.69,135.62,2.947]
[1642515237671,8.948,135.68,135.6,2.948]
[1642515237878,8.948,135.68,135.59,24.2134]
[1642515238071,0.25,135.67,135.59,24.2134]
[1642515238271,2.949,135.66,135.59,70.45124594]
[1642515238473,14.011,135.66,135.59,70.45124594]
[1642515238671,6.0,135.65,135.6,0.25]
[1642515239102,2.949,135.68,135.6,1.96461283]
[1642515239372,2.949,135.69,135.6,1.96461283]
[1642515239571,6.0,135.68,135.6,0.25]
[1642515239777,2.948,135.67,135.6,0.25]
[1642515239973,6.0,135.68,135.6,14.2575]
[1642515240174,2.948,135.69,135.61,1.71461283]
[1642515240373,2.948,135.71,135.62,2.948]
[1642515240574,10.57,135.74,135.62,3.198]
[1642515240874,8.948,135.73,135.63,1.71461283]
[1642515241177,11.0572,135.72,135.64,49.70979561]
[1642515241375,11.0572,135.72,135.65,2.948]
[1642515241773,6.0,135.71,135.65,2.948]
[1642515241979,9.198,135.71,135.62,25.745]
[1642515242179,20.2554,135.71,135.63,0.25]
[1642515242779,20.2554,135.71,135.63,40.5448268]
[1642515242978,8.948,135.71,135.63,40.5448268]
[1642515243379,6.0,135.71,135.64,2.948]
[1642515243781,6.0,135.71,135.65,0.25]
[1642515246609,14.0046,135.72,135.65,0.25]
[1642515246811,11.0566,135.72,135.65,0.25]
[1642515247015,2.948,135.73,135.65,11.3054]
[1642515247312,2.948,135.73,135.66,46.60040537]
[1642515247510,11.0554,135.74,135.66,49.54740537]
[1642515247711,6.0,135.73,135.67,0.25]
[1642515247913,11.0554,135.74,135.67,0.25]
[1642515248517,0.25,135.73,135.67,0.25]
[1642515249813,3.197,135.73,135.67,0.25]
[1642515250822,29.50898745,135.73,135.67,0.25]
[1642515251016,40.56508745,135.73,135.67,0.25]
[1642515251218,37.61808745,135.73,135.66,0.25]
[1642515251520,8.947,135.72,135.65,2.947]
[1642515251818,0.25,135.71,135.63,24.8034]
[1642515252018,2.948,135.7,135.63,24.8034]
[1642515252219,40.37231787,135.69,135.62,2.948]
[1642515252418,2.948,135.68,135.6,2.948]
[1642515252619,6.0,135.67,135.6,2.948]
[1642515252817,11.532,135.67,135.58,2.949]
[1642515253218,26.31198745,135.66,135.59,40.700426]
[1642515253418,37.37388745,135.66,135.59,40.700426]
[1642515253622,11.532,135.67,135.6,0.25]
[1642515254023,3.9813032,135.61,135.6,0.25]
[1642515254820,3.9813032,135.61,135.58,2.949]
[1642515255021,11.5883032,135.61,135.58,2.949]
[1642515256224,11.5883032,135.61,135.56,39.4527379]
[1642515257924,11.5883032,135.61,135.57,0.25]
[1642515257925,3.9813032,135.61,135.57,0.25]
[1642515258124,3.9813032,135.61,135.58,2.95]
[1642515258324,3.9813032,135.61,135.59,3.28219997]
[1642515259027,3.9813032,135.61,135.6,42.27291201]
[1642515259227,3.9813032,135.61,135.6,42.52291201]
[1642515259428,3.9813032,135.61,135.6,42.27291201]
[1642515259627,3.9813032,135.61,135.6,42.52291201]
[1642515260527,55.0315,135.67,135.6,42.52291201]
[1642515260727,2.949,135.68,135.61,0.25]
[1642515260927,2.948,135.71,135.61,0.25]
[1642515261128,6.0,135.7,135.61,0.25]
[1642515261333,2.948,135.69,135.61,25.0371]
[1642515261526,2.948,135.69,135.61,36.0958]
[1642515262427,6.0,135.68,135.61,36.0958]
[1642515262628,6.0,135.68,135.61,39.0438]
[1642515263628,6.0,135.68,135.61,14.2567]
[1642515270133,6.0,135.68,135.61,3.198]
[1642515270934,17.06,135.68,135.61,3.198]
[1642515271132,22.721,135.68,135.61,3.198]
[1642515271532,22.721,135.68,135.61,0.25]
[1642515271936,22.721,135.68,135.58,25.5617]
[1642515271937,0.25,135.67,135.58,25.5617]
[1642515272133,11.0619,135.66,135.57,11.0613]
[1642515272334,2.949,135.65,135.55,2.949]
[1642515272534,7.188,135.65,135.55,2.949]
[1642515272833,49.71488836,135.64,135.55,47.35005106]
[1642515273036,123.57488836,135.64,135.55,47.35005106]
[1642515273233,123.57488836,135.64,135.56,0.25]
[1642515273635,49.71488836,135.64,135.56,0.25]
[1642515274436,20.2628,135.64,135.56,0.25]
[1642515274635,6.25,135.64,135.56,0.25]
[1642515275037,6.0,135.63,135.56,0.25]
[1642515275236,3.9982512,135.58,135.56,0.25]
[1642515275437,3.9982512,135.58,135.57,6.0643]
[1642515275836,3.9982512,135.58,135.57,6.3143]
[1642515276840,3.9982512,135.58,135.57,6.0643]
[1642515277039,3.9982512,135.58,135.55,2.949]
[1642515277441,6.0,135.57,135.54,16.66980339]
[1642515278238,0.25,135.56,135.54,16.66980339]
[1642515278439,5.869,135.56,135.54,16.66980339]
[1642515278841,6.0,135.55,135.54,16.66980339]
[1642515279541,2.95,135.57,135.54,16.66980339]
[1642515279844,3.9982512,135.58,135.54,16.66980339]
[1642515280045,6.0,135.57,135.54,16.66980339]
[1642515281657,6.9482512,135.58,135.55,6.0643]
[1642515281842,3.9982512,135.58,135.55,6.0643]
[1642515282441,3.9982512,135.58,135.56,36.07634063]
[1642515282842,3.9982512,135.58,135.57,6.0643]
[1642515283242,3.9982512,135.58,135.57,3.03210003]
[1642515283442,3.9982512,135.58,135.56,36.07634063]
[1642515283844,3.9982512,135.58,135.57,31.25]
[1642515284044,2.95,135.64,135.57,31.0]
[1642515284243,6.0,135.63,135.58,0.25]
[1642515284445,2.949,135.65,135.58,0.25]
[1642515284643,6.0,135.64,135.57,33.949]
[1642515284844,50.26380109,135.63,135.57,33.949]
[1642515285043,50.26380109,135.63,135.57,2.949]
[1642515285248,50.26380109,135.63,135.57,14.0109]
[1642515285446,6.25,135.62,135.57,2.949]
[1642515285645,2.949,135.61,135.57,2.949]
[1642515286046,6.0,135.6,135.57,2.949]
[1642515286446,2.949,135.61,135.57,38.79247946]
[1642515286645,3.2,135.62,135.57,35.84347946]
[1642515286947,3.2,135.62,135.55,11.0634]
[1642515287747,14.2648,135.62,135.54,16.66980339]
[1642515287945,14.2648,135.62,135.55,0.25]
[1642515288147,6.0,135.61,135.55,0.25]
[1642515288346,27.09905863,135.6,135.55,0.25]
[1642515289347,6.0,135.61,135.55,0.25]
[1642515289546,6.0,135.61,135.54,64.98471465]
[1642515289547,17.0658,135.61,135.54,16.66980339]
[1642515289747,0.25,135.6,135.54,16.66980339]
[1642515290547,6.25,135.6,135.54,16.66980339]
[1642515291548,17.3167,135.6,135.54,16.66980339]
[1642515292552,17.3167,135.6,135.55,42.70764259]
[1642515293354,6.25,135.6,135.55,42.70764259]
[1642515294159,6.25,135.6,135.54,16.66980339]
[1642515295254,40.16654599,135.59,135.54,16.66980339]
[1642515295486,6.0,135.58,135.54,16.66980339]
[1642515299491,9.2,135.6,135.54,16.66980339]
[1642515300092,49.1942928,135.6,135.54,16.66980339]
[1642515300694,49.1942928,135.6,135.54,53.70595554]
[1642515301500,9.2,135.6,135.54,37.03615215]
[1642515301897,6.0,135.6,135.54,37.03615215]
[1642515302097,2.95,135.64,135.55,2.95]
[1642515302299,2.949,135.66,135.57,11.0618]
[1642515302497,6.0,135.65,135.58,40.02571877]
[1642515302697,6.0,135.65,135.58,40.27571877]
[1642515303099,6.0,135.65,135.58,40.02571877]
[1642515303397,6.0,135.65,135.59,11.0603]
[1642515305097,6.0,135.65,135.6,0.25]
[1642515305297,2.949,135.69,135.58,76.88491877]
[1642515305499,2.949,135.69,135.61,11.0576]
[1642515305799,0.25,135.68,135.62,34.98794372]
[1642515305998,2.948,135.67,135.62,34.98794372]
[1642515306599,2.948,135.69,135.62,34.98794372]
[1642515306798,6.0,135.69,135.62,34.98794372]
[1642515307199,17.0584,135.69,135.62,34.98794372]
[1642515307399,2.948,135.68,135.62,34.98794372]
[1642515307702,6.0,135.67,135.62,34.98794372]
[1642515308099,6.0,135.67,135.6,2.948]
[1642515308304,17.0601,135.67,135.61,0.25]
[1642515309101,6.0,135.67,135.61,39.27010206]
[1642515309803,27.54304208,135.66,135.6,2.948]
[1642515310001,6.0,135.65,135.6,2.948]
[1642515310201,3.199,135.64,135.6,2.948]
[1642515310400,8.848,135.64,135.6,2.948]
[1642515310600,6.0,135.63,135.6,2.948]
[1642515312507,11.0642,135.62,135.6,42.47670633]
[1642515312708,6.0,135.63,135.6,39.52870633]
[1642515313109,6.25,135.64,135.6,39.52870633]
[1642515313314,6.0,135.64,135.61,6.0643]
[1642515313509,2.949,135.66,135.61,6.0643]
[1642515313709,5.03506035,135.67,135.62,0.25]
[1642515313909,2.08706035,135.67,135.62,0.25]
[1642515314139,2.08706035,135.67,135.63,2.948]
[1642515314340,2.08706035,135.67,135.64,45.78189637]
[1642515314537,2.08706035,135.67,135.65,6.0643]
[1642515314739,2.08706035,135.71,135.65,6.0643]
[1642515314939,5.03506035,135.71,135.65,6.0643]
[1642515315139,6.0,135.7,135.65,6.0643]
[1642515315340,2.08706035,135.71,135.65,6.0643]
[1642515315542,2.08706035,135.71,135.65,9.0123]
[1642515315742,2.08706035,135.72,135.65,9.0123]
[1642515316142,2.08706035,135.72,135.66,0.25]
[1642515316543,2.08706035,135.72,135.67,11.053]
[1642515316741,2.08706035,135.72,135.68,0.25]
[1642515316943,2.08706035,135.75,135.68,0.25]
[1642515317541,2.08706035,135.75,135.68,11.3024]
[1642515317742,4.17412071,135.78,135.69,13.517]
[1642515317942,4.17412071,135.8,135.69,13.517]
[1642515318146,4.17412071,135.8,135.7,75.83478485]
[1642515318443,4.17412071,135.8,135.71,13.516]
[1642515318643,4.17412071,135.8,135.72,41.54053735]
[1642515318843,4.17412071,135.8,135.74,11.0475]
[1642515319041,4.17412071,135.8,135.75,38.50337624]
[1642515319242,4.17412071,135.8,135.75,38.75337624]
[1642515319844,2.946,135.82,135.75,38.75337624]
[1642515320051,6.0,135.81,135.75,38.75337624]
[1642515320445,6.0,135.83,135.75,49.80007624]
[1642515320646,6.0,135.83,135.75,52.74507624]
[1642515321747,19.9917,135.83,135.75,52.74507624]
[1642515321947,11.0467,135.83,135.75,52.74507624]
[1642515322147,6.0,135.82,135.75,52.74507624]
[1642515323047,2.945,135.84,135.76,73.86]
[1642515323248,2.945,135.86,135.77,3.195]
[1642515323451,6.0,135.83,135.79,11.0435]
[1642515323750,6.0,135.85,135.79,11.0435]
[1642515324048,6.0,135.86,135.8,40.83742687]
[1642515324248,6.0,135.86,135.8,44.03142687]
[1642515324450,6.0,135.87,135.8,44.03142687]
[1642515324649,0.25,135.86,135.79,11.0435]
[1642515324849,3.194,135.86,135.76,26.9996]
[1642515325049,6.0,135.85,135.76,24.0556]
[1642515325250,3.195,135.84,135.77,0.25]
[1642515325650,6.0,135.83,135.77,44.05974429]
[1642515327254,6.0,135.83,135.77,54.62974429]
[1642515327455,6.0,135.83,135.77,54.88974429]
[1642515327856,6.0,135.83,135.78,2.945]
[1642515328055,6.0,135.86,135.8,36.92981002]
[1642515328255,6.0,135.86,135.81,0.25]
[1642515328553,6.0,135.87,135.81,0.25]
[1642515329155,2.945,135.88,135.81,0.25]
[1642515329357,13.9844,135.91,135.82,2.944]
[1642515329557,11.0404,135.91,135.82,2.944]
[1642515329757,11.0404,135.91,135.83,47.14952103]
[1642515330458,11.0404,135.91,135.83,58.18932103]
[1642515330659,6.0,135.9,135.83,58.18932103]
[1642515330857,8.944,135.9,135.83,58.18932103]
[1642515331058,35.09010118,135.89,135.83,57.93932103]
[1642515331259,2.944,135.88,135.83,46.89952103]
[1642515331459,6.0,135.88,135.83,46.89952103]
[1642515331659,6.0,135.88,135.82,2.944]
[1642515331660,2.944,135.92,135.82,2.944]
[1642515331860,3.194,135.87,135.82,2.944]
[1642515332061,6.0,135.86,135.82,2.944]
[1642515332262,8.944,135.86,135.82,2.944]
[1642515332662,0.25,135.85,135.76,24.8916]
[1642515332916,2.945,135.84,135.76,24.8916]
[1642515333062,6.0,135.83,135.72,37.3632]
[1642515333263,2.946,135.82,135.72,37.3632]
[1642515333463,6.0,135.83,135.72,37.3632]
[1642515333666,6.0,135.83,135.73,123.21042448]
[1642515333868,2.945,135.86,135.74,24.5621]
[1642515334066,2.945,135.89,135.76,73.86]
[1642515334265,2.944,135.91,135.77,38.6636]
[1642515334466,2.944,135.88,135.78,23.4296]
[1642515334666,6.0,135.9,135.8,44.7911273]
[1642515334867,13.9863,135.89,135.8,55.8335273]
[1642515335068,6.0,135.88,135.81,0.25]
[1642515335467,6.0,135.88,135.8,68.0715273]
[1642515335668,3.194,135.87,135.8,68.0715273]
[1642515336069,6.0,135.86,135.8,68.0715273]
[1642515336269,17.0443,135.86,135.8,68.0715273]
[1642515337672,17.0443,135.86,135.81,0.25]
[1642515338076,11.0443,135.86,135.81,0.25]
[1642515339483,8.944,135.85,135.78,23.4296]
[1642515339682,11.0477,135.83,135.76,25.6817]
[1642515339882,19.5867,135.83,135.76,22.7377]
[1642515340082,6.0,135.82,135.76,22.7377]
[1642515340506,46.46493105,135.84,135.77,35.86097286]
[1642515340704,11.0478,135.82,135.77,35.86097286]
[1642515341005,6.0,135.81,135.77,35.86097286]
[1642515341608,15.0606464,135.82,135.77,35.86097286]
[1642515342005,4.0128464,135.82,135.77,35.86097286]
[1642515342206,4.0128464,135.82,135.78,0.25]
[1642515342406,4.0128464,135.82,135.78,3.195]
[1642515342806,4.0128464,135.82,135.78,2.945]
[1642515343009,4.0128464,135.82,135.78,13.9894]
[1642515343207,4.0128464,135.82,135.78,11.0444]
[1642515344511,4.0128464,135.82,135.77,35.86097286]
[1642515348411,4.0128464,135.82,135.78,0.25]
[1642515348812,4.0128464,135.82,135.79,2.945]
[1642515349012,4.0128464,135.82,135.8,42.70247901]
[1642515349212,4.0128464,135.82,135.8,53.74537901]
[1642515349410,4.0128464,135.82,135.8,17.1072]
[1642515349612,4.0128464,135.82,135.8,6.0643]
[1642515349811,6.0,135.81,135.8,6.0643]
[1642515350210,6.0,135.81,135.76,11.0453]
[1642515350410,6.0,135.81,135.76,60.20496897]
[1642515350611,6.0,135.8,135.76,60.20496897]
[1642515351012,6.0,135.81,135.76,60.20496897]
[1642515353214,6.0,135.81,135.76,49.15966897]
[1642515353414,6.0,135.81,135.74,26.564]
[1642515353614,0.25,135.8,135.74,26.564]
[1642515353916,3.196,135.8,135.74,23.619]
[1642515354115,6.0,135.79,135.71,2.946]
[1642515354315,0.25,135.78,135.69,13.9968]
[1642515354516,40.33037983,135.78,135.7,42.40759787]
[1642515354916,6.0,135.77,135.7,42.40759787]
[1642515355315,11.0556,135.75,135.7,42.40759787]
[1642515355615,11.0556,135.75,135.69,2.946]
[1642515355616,8.947,135.74,135.69,2.946]
[1642515355815,14.721,135.74,135.69,2.946]
[1642515356016,14.721,135.74,135.63,4.17412071]
[1642515356217,25.291,135.74,135.63,4.17412071]
[1642515356716,73.86,135.73,135.63,4.17412071]
[1642515356916,2.948,135.72,135.64,43.66749185]
[1642515357219,10.98705272,135.72,135.64,43.66749185]
[1642515357418,1.78905272,135.71,135.61,2.947]
[1642515357716,9.198,135.7,135.58,4.17412071]
[1642515357916,10.57,135.69,135.56,2.948]
[1642515358117,11.0635,135.65,135.56,2.948]
[1642515358323,3.199,135.64,135.57,42.40246085]
[1642515358518,6.25,135.64,135.57,42.40246085]
[1642515358717,6.0,135.64,135.58,0.25]
[1642515358917,2.949,135.68,135.59,2.949]
[1642515359144,6.0,135.67,135.59,2.949]
[1642515359316,17.3104,135.67,135.59,2.949]
[1642515359517,2.949,135.68,135.6,36.34145511]
[1642515359821,2.949,135.69,135.61,2.948]
[1642515360017,6.0,135.68,135.61,2.948]
[1642515360218,8.948,135.71,135.62,0.25]
[1642515360619,0.25,135.7,135.62,0.25]
[1642515361421,11.0585,135.69,135.62,11.3074]
[1642515361722,6.0,135.68,135.63,44.25079116]
[1642515362322,9.198,135.7,135.63,44.25079116]
[1642515362521,9.198,135.7,135.62,0.25]
[1642515362722,11.0594,135.68,135.61,2.948]
[1642515362926,2.948,135.67,135.61,2.948]
[1642515363123,9.198,135.67,135.61,2.948]
[1642515363323,6.0,135.67,135.59,2.948]
[1642515363524,6.0,135.68,135.6,44.7461293]
[1642515363725,3.198,135.67,135.6,44.7461293]
[1642515364024,6.0,135.68,135.61,0.25]
[1642515364224,6.0,135.68,135.61,3.198]
[1642515364623,6.0,135.69,135.61,3.198]
[1642515364827,6.25,135.69,135.61,3.198]
[1642515365024,6.25,135.69,135.61,14.2566]
[1642515365224,6.0,135.69,135.61,14.2566]
[1642515365625,6.0,135.69,135.61,25.0866]
[1642515366028,6.0,135.71,135.61,25.0866]
[1642515366329,6.0,135.71,135.61,49.7695]
[1642515366526,11.0563,135.72,135.61,49.7695]
[1642515366751,11.0563,135.72,135.61,73.4757]
[1642515366950,6.0,135.71,135.61,73.4757]
[1642515368051,6.0,135.71,135.62,73.86]
[1642515368253,17.0566,135.71,135.63,52.64371502]
[1642515368854,0.25,135.7,135.63,2.948]
[1642515369057,11.187,135.7,135.58,10.57]
[1642515369254,11.187,135.7,135.57,2.948]
[1642515369255,11.059,135.68,135.57,37.1551]
[1642515369555,2.949,135.67,135.57,23.1459]
[1642515369754,14.504,135.67,135.57,23.1459]
[1642515369965,47.14221802,135.66,135.58,36.59078254]
[1642515370155,0.25,135.65,135.58,36.59078254]
[1642515370356,4.0128464,135.61,135.58,36.59078254]
[1642515370557,4.0128464,135.61,135.59,6.0643]
[1642515370756,4.0128464,135.61,135.58,36.59078254]
[1642515372459,4.0128464,135.61,135.57,26.0949]
[1642515372658,4.0128464,135.61,135.57,2.949]
[1642515373763,4.0128464,135.61,135.56,45.9988]
[1642515373961,4.0128464,135.61,135.56,34.9361]
[1642515374167,4.0128464,135.61,135.56,75.22503499]
[1642515374667,4.0128464,135.61,135.57,0.25]
[1642515380475,6.0,135.6,135.54,26.0926]
[1642515380675,23.4277,135.6,135.54,23.1426]
[1642515380876,23.4277,135.6,135.53,10.57]
[1642515381074,23.4277,135.6,135.51,2.95]
[1642515381075,3.2,135.59,135.51,23.1003]
[1642515381275,40.35165106,135.58,135.51,71.62217864]
[1642515381475,46.35165106,135.58,135.51,71.62217864]
[1642515382476,57.41905106,135.58,135.51,71.62217864]
[1642515383478,17.0674,135.58,135.51,71.62217864]
[1642515383677,17.0674,135.58,135.52,0.25]
[1642515384079,6.0,135.58,135.52,0.25]
[1642515384279,2.95,135.6,135.52,0.25]
[1642515384478,4.0128464,135.61,135.54,36.31212417]
[1642515384680,4.0128464,135.61,135.55,0.25]
[1642515386405,4.0128464,135.61,135.55,11.3135]
[1642515386803,4.0128464,135.61,135.55,11.0635]
[1642515387506,4.0128464,135.61,135.56,0.25]
[1642515387904,4.0128464,135.61,135.56,11.0628]
[1642515388305,4.0128464,135.61,135.57,0.25]
[1642515388706,4.0128464,135.61,135.57,44.53784325]
[1642515389307,4.0128464,135.61,135.55,11.0636]
[1642515390010,6.0,135.6,135.55,11.0636]
[1642515390407,6.0,135.6,135.56,37.36675615]
[1642515391408,6.0,135.6,135.54,14.0145]
[1642515391706,6.0,135.6,135.55,0.25]
[1642515392107,6.0,135.6,135.54,2.95]
[1642515392308,12.663,135.6,135.54,2.95]
[1642515392507,35.52514126,135.59,135.54,2.95]
[1642515392707,2.95,135.59,135.54,2.95]
[1642515392906,6.0,135.58,135.54,2.95]
[1642515393508,6.0,135.6,135.54,2.95]
[1642515393708,44.45347399,135.59,135.54,2.95]
[1642515393910,14.0181,135.58,135.54,2.95]
[1642515394112,20.2681,135.58,135.54,2.95]
[1642515394616,20.2681,135.58,135.52,23.1945]
[1642515396714,20.2681,135.58,135.51,38.76715101]
[1642515398120,20.2681,135.58,135.49,23.8488]
[1642515398421,20.2681,135.58,135.5,0.25]
[1642515399017,20.2681,135.58,135.5,49.47394476]
[1642515400720,20.2681,135.58,135.5,0.25]
[1642515404720,20.2681,135.58,135.47,2.951]
[1642515404920,10.57,135.57,135.46,4.17412071]
[1642515405121,11.0724,135.54,135.46,4.17412071]
[1642515405322,19.5494,135.54,135.46,4.17412071]
[1642515405523,6.25,135.53,135.45,49.0524]
[1642515405723,38.29744608,135.53,135.46,44.98835166]
[1642515406122,6.25,135.53,135.46,44.98835166]
[1642515406321,4.0128464,135.52,135.46,44.98835166]
[1642515406724,10.4638464,135.52,135.46,44.98835166]
[1642515407522,10.4638464,135.52,135.45,49.0524]
[1642515407523,34.97123662,135.51,135.45,49.0524]
[1642515407724,38.17323662,135.51,135.45,2.951]
[1642515407924,6.0,135.5,135.45,2.951]
[1642515408124,2.952,135.49,135.45,2.951]
[1642515408325,9.556,135.49,135.45,2.951]
[1642515408524,44.44271854,135.48,135.45,2.951]
[1642515408725,0.25,135.47,135.45,2.951]
[1642515408925,11.3265,135.47,135.45,2.951]
[1642515409325,11.3265,135.47,135.4,4.17412071]
[1642515409523,6.0,135.46,135.4,4.17412071]
[1642515409725,35.35720153,135.45,135.4,4.17412071]
[1642515409926,35.35720153,135.45,135.39,24.3924]
[1642515410126,6.0,135.44,135.39,23.8924]
[1642515410326,6.0,135.44,135.38,467.03710717]
[1642515410525,6.0,135.44,135.38,464.08410717]
[1642515411127,6.0,135.44,135.38,1.17412071]
[1642515411329,11.0804,135.43,135.37,66.19568615]
[1642515412231,38.44271854,135.42,135.38,0.25]
[1642515412430,11.0825,135.41,135.36,2.953]
[1642515413031,6.0,135.4,135.36,2.953]
[1642515413433,6.0,135.4,135.35,0.18471191]
[1642515413631,11.0846,135.39,135.35,0.18471191]
[1642515413834,6.0,135.41,135.35,0.18471191]
[1642515414131,4.0128464,135.47,135.35,0.18471191]
[1642515414331,4.0128464,135.47,135.35,44.27348864]
[1642515414531,4.0128464,135.47,135.35,50.27348864]
[1642515414732,4.0128464,135.47,135.35,50.53348864]
[1642515414932,15.0905464,135.47,135.37,11.078]
[1642515415135,15.0905464,135.47,135.38,36.90751348]
[1642515415331,15.0905464,135.47,135.38,36.65751348]
[1642515415534,36.51445203,135.45,135.38,0.25]
[1642515415732,36.51445203,135.45,135.37,10.57]
[1642515415932,17.08,135.44,135.37,10.57]
[1642515416136,2.954,135.43,135.35,22.81891191]
[1642515416531,37.53546804,135.41,135.35,22.81891191]
[1642515417132,37.53546804,135.41,135.36,0.25]
[1642515417534,48.61786804,135.41,135.36,0.25]
[1642515417732,48.61786804,135.41,135.35,0.18471191]
[1642515417934,9.204,135.4,135.35,0.18471191]
[1642515420133,20.287,135.4,135.35,0.18471191]
[1642515422937,27.252,135.4,135.35,0.18471191]
[1642515423539,4.0128464,135.37,135.35,0.18471191]
[1642515423739,15.0982464,135.37,135.35,0.18471191]
[1642515424541,4.0128464,135.37,135.35,0.18471191]
[1642515426040,4.0128464,135.37,135.36,39.0]
[1642515426239,2.955,135.44,135.37,45.0099536]
[1642515426439,11.0796,135.45,135.37,45.0099536]
[1642515426668,11.0796,135.45,135.38,23.0124]
[1642515426842,11.0796,135.45,135.39,38.87279429]
[1642515427045,49.04472188,135.46,135.39,38.87279429]
[1642515427444,60.12342188,135.46,135.39,38.87279429]
[1642515427644,6.0,135.45,135.39,38.87279429]
[1642515428042,6.0,135.49,135.41,11.0748]
[1642515428243,6.0,135.49,135.42,0.25]
[1642515428845,42.29882753,135.48,135.41,11.0748]
[1642515429045,6.0,135.47,135.39,38.87279429]
[1642515429247,6.0,135.47,135.4,11.3252]
[1642515429847,6.0,135.47,135.4,0.25]
[1642515431247,6.0,135.47,135.4,11.3257]
[1642515431852,6.0,135.5,135.4,11.5857]
[1642515432055,3.203,135.49,135.4,11.5857]
[1642515432249,0.25,135.49,135.4,11.5857]
[1642515433551,0.25,135.49,135.4,0.25]
[1642515433552,17.3259,135.49,135.4,0.25]
[1642515433950,17.3259,135.49,135.39,10.57]